bitfinex/quotes_SOLUSD_20260314
["timestamp","ask_amount","ask_price","bid_price","bid_amount"]
[1773469080096,0.55056994,87.845,87.81,4.1974213]
[1773469080394,0.55056994,87.845,87.811,0.52563591]
[1773469081289,0.55056994,87.845,87.82,3.67178539]
[1773469081490,0.55056994,87.843,87.817,0.52563591]
[1773469081994,0.55056994,87.843,87.812,11.3193011]
[1773469082984,0.55056994,87.843,87.812,10.00256846]
[1773469083198,0.55056994,87.843,87.81,3.67719774]
[1773469083502,0.55056994,87.839,87.812,11.38796519]
[1773469083900,0.55056994,87.839,87.801,11.38939192]
[1773469084117,0.55056994,87.839,87.802,0.52563591]
[1773469084415,0.55056994,87.839,87.809,0.52563591]
[1773469085702,3.67719774,87.84,87.796,0.52563591]
[1773469085703,0.55056994,87.837,87.796,0.52563591]
[1773469085906,11.38459436,87.838,87.796,0.52563591]
[1773469085907,0.55056994,87.829,87.8,3.67719774]
[1773469086085,0.55056994,87.829,87.801,0.52563591]
[1773469086807,0.55056994,87.829,87.802,11.3892622]
[1773469087191,3.67719774,87.83,87.802,11.3892622]
[1773469087192,0.55056994,87.827,87.802,11.3892622]
[1773469088806,0.55056994,87.819,87.79,11.49078303]
[1773469089312,0.55056994,87.819,87.79,12.01641894]
[1773469089606,0.55056994,87.818,87.79,12.01641894]
[1773469089992,0.55056994,87.816,87.79,12.01641894]
[1773469090910,0.55056994,87.824,87.791,0.52563591]
[1773469091101,0.55056994,87.819,87.791,0.52563591]
[1773469091607,0.55056994,87.819,87.79,11.49078303]
[1773469092004,0.55056994,87.809,87.79,0.1]
[1773469092511,0.55056994,87.809,87.776,0.52563591]
[1773469092708,0.55056994,87.799,87.776,0.52563591]
[1773469093102,7.26,87.804,87.77,3.67719774]
[1773469093103,0.55056994,87.803,87.77,3.67719774]
[1773469093410,0.55056994,87.799,87.763,0.52563591]
[1773469094113,0.55056994,87.789,87.762,0.52563591]
[1773469094288,0.55056994,87.789,87.756,0.52563591]
[1773469094493,0.55056994,87.789,87.76,3.67719774]
[1773469094803,0.55056994,87.797,87.771,0.52563591]
[1773469095306,0.55056994,87.797,87.761,0.52563591]
[1773469096011,0.55056994,87.797,87.76,3.67719774]
[1773469096012,0.55056994,87.797,87.763,0.52563591]
[1773469096213,7.26,87.804,87.771,0.52563591]
[1773469096386,7.26,87.804,87.781,0.52563591]
[1773469096586,0.55056994,87.819,87.791,0.52563591]
[1773469097092,7.26,87.827,87.801,0.52563591]
[1773469097288,7.26,87.832,87.801,0.52563591]
[1773469097510,0.55056994,87.829,87.801,0.52563591]
[1773469098489,11.3858906,87.828,87.801,0.52563591]
[1773469098690,0.55056994,87.827,87.801,0.52563591]
[1773469099117,0.55056994,87.827,87.791,11.39068925]
[1773469099611,0.55056994,87.826,87.8,3.67719774]
[1773469100802,0.55056994,87.824,87.79,3.67719774]
[1773469101012,0.55056994,87.824,87.8,3.67719774]
[1773469102098,0.55056994,87.824,87.801,0.53292217]
[1773469102500,0.55056994,87.824,87.791,0.53292217]
[1773469103313,0.48458812,87.822,87.793,0.53292217]
[1773469103710,0.48458812,87.822,87.8,3.67719774]
[1773469103910,0.48458812,87.822,87.792,11.3905595]
[1773469104112,0.48458812,87.809,87.771,0.53292217]
[1773469104414,0.48458812,87.799,87.766,11.39393386]
[1773469104600,0.48458812,87.797,87.766,11.39393386]
[1773469104802,0.48458812,87.797,87.766,11.92685603]
[1773469105108,0.48458812,87.795,87.767,0.53292217]
[1773469105410,0.48458812,87.795,87.768,11.39367423]
[1773469107017,0.48458812,87.795,87.77,3.67719774]
[1773469107322,0.48458812,87.795,87.771,0.53292217]
[1773469108599,0.48458812,87.795,87.765,0.53292217]
[1773469109213,0.48458812,87.795,87.771,0.53292217]
[1773469109618,0.48458812,87.795,87.766,11.39393386]
[1773469109803,0.48458812,87.795,87.766,11.92685603]
[1773469110305,0.48458812,87.793,87.767,0.53292217]
[1773469111318,0.48458812,87.793,87.769,0.53292217]
[1773469111817,0.48458812,87.793,87.771,0.53292217]
[1773469113425,0.48458812,87.793,87.773,0.53292217]
[1773469113716,7.74458812,87.801,87.773,0.53292217]
[1773469113923,0.48458812,87.8,87.773,0.53292217]
[1773469115002,0.48458812,87.8,87.772,11.39315499]
[1773469115003,0.48458812,87.799,87.772,11.39315499]
[1773469115502,0.48458812,87.798,87.75,0.53292217]
[1773469115701,3.67719774,87.78,87.741,0.53292217]
[1773469115924,0.48458812,87.779,87.741,0.53292217]
[1773469116324,0.48458812,87.787,87.76,3.67719774]
[1773469116523,0.48458812,87.787,87.753,0.53292217]
[1773469116823,0.48458812,87.787,87.76,3.67719774]
[1773469117203,0.48458812,87.787,87.73,2.95506722]
[1773469117403,0.48458812,87.787,87.76,3.67719774]
[1773469117800,0.48458812,87.787,87.761,11.39458301]
[1773469118304,0.48458812,87.787,87.761,39.88104054]
[1773469118717,0.48458812,87.787,87.761,40.21307931]
[1773469119024,0.48458812,87.787,87.761,39.88104054]
[1773469119238,0.48458812,87.818,87.781,0.33203877]
[1773469120121,11.3873168,87.817,87.782,11.3918571]
[1773469120327,0.48458812,87.816,87.782,11.3918571]
[1773469120625,0.48458812,87.809,87.782,11.3918571]
[1773469123130,0.48458812,87.809,87.773,0.33064655]
[1773469123131,0.48458812,87.807,87.774,11.39289539]
[1773469124131,0.48458812,87.807,87.775,0.32861762]
[1773469124330,0.48458812,87.807,87.78,4.00581536]
[1773469125032,0.48458812,87.807,87.781,11.39198687]
[1773469125207,103.4,87.808,87.782,0.32795678]
[1773469125532,11.38609536,87.827,87.791,0.32795678]
[1773469125828,11.38531494,87.833,87.801,0.53292217]
[1773469126009,7.26,87.829,87.801,0.53292217]
[1773469127122,11.38602024,87.827,87.802,0.49733311]
[1773469127722,11.88702073,87.827,87.802,0.49733311]
[1773469128229,0.50100049,87.826,87.803,11.38913248]
[1773469129032,0.50100049,87.839,87.811,0.49733311]
[1773469129330,7.26,87.832,87.811,0.49733311]
[1773469130827,7.26,87.832,87.82,4.17453085]
[1773469131037,0.50100049,87.841,87.82,4.17453085]
[1773469131712,0.50160688,87.839,87.813,0.4901255]
[1773469131912,0.50160688,87.839,87.812,11.38796519]
[1773469132826,0.50160688,87.837,87.82,3.67719774]
[1773469133319,0.50160688,87.85,87.821,0.4901255]
[1773469133522,7.26,87.849,87.821,0.4901255]
[1773469134027,0.50160688,87.848,87.821,0.4901255]
[1773469134212,0.50160688,87.848,87.83,3.67719774]
[1773469135012,0.50160688,87.846,87.83,3.67719774]
[1773469138636,0.50160688,87.844,87.813,11.38783551]
[1773469138830,0.50160688,87.839,87.813,11.38783551]
[1773469139133,0.50160688,87.839,87.803,11.38913248]
[1773469139311,0.50160688,87.838,87.803,11.38913248]
[1773469139516,0.50160688,87.838,87.804,0.4901255]
[1773469140033,11.38472397,87.837,87.813,0.4901255]
[1773469140214,0.50160688,87.836,87.813,0.4901255]
[1773469141318,0.50160688,87.836,87.812,11.38796519]
[1773469141518,0.50160688,87.836,87.82,3.67719774]
[1773469141719,0.50160688,87.843,87.821,0.4901255]
[1773469142232,0.50160688,87.841,87.821,0.4901255]
[1773469142528,0.50160688,87.841,87.811,11.38809488]
[1773469142735,0.50160688,87.839,87.811,11.38809488]
[1773469143634,0.50160688,87.837,87.811,11.38809488]
[1773469144140,0.50160688,87.837,87.811,11.87822038]
[1773469144440,0.50160688,87.837,87.82,3.67758492]
[1773469144836,103.4,87.84,87.83,3.67758492]
[1773469145535,103.4,87.84,87.826,0.4901255]
[1773469146516,0.50160688,87.849,87.827,11.87614574]
[1773469146740,0.50160688,87.849,87.828,0.4901255]
[1773469146939,7.26,87.852,87.831,0.4901255]
[1773469147142,0.50160688,87.851,87.831,0.4901255]
[1773469147728,7.26,87.852,87.831,0.4901255]
[1773469148929,7.26,87.852,87.833,0.4901255]
[1773469149441,7.26,87.852,87.84,3.67758492]
[1773469149622,0.50160688,87.882,87.842,0.4901255]
[1773469149826,0.50160688,87.882,87.851,0.4901255]
[1773469151331,0.50160688,87.882,87.852,11.38278013]
[1773469151524,0.50160688,87.882,87.861,0.4901255]
[1773469152139,7.76160688,87.882,87.861,0.4901255]
[1773469152826,7.26,87.882,87.863,0.4901255]
[1773469153542,0.50160688,87.895,87.871,0.4901255]
[1773469153725,0.50160688,87.895,87.88,3.67758492]
[1773469155234,0.50160688,87.895,87.876,11.86975587]
[1773469160731,0.50160688,87.895,87.88,3.67758492]
[1773469161350,18.63656791,87.9,87.88,3.67758492]
[1773469161554,0.48505155,87.899,87.88,3.67758492]
[1773469165453,11.37682313,87.898,87.876,0.4901255]
[1773469165648,11.37682313,87.898,87.87,3.67758492]
[1773469165649,0.48505155,87.897,87.87,4.14416457]
[1773469165833,0.48505155,87.897,87.871,0.46657965]
[1773469166546,0.48505155,87.897,87.857,0.46657965]
[1773469166754,0.48505155,87.897,87.87,3.67758492]
[1773469167735,0.48505155,87.895,87.87,3.67758492]
[1773469168261,0.48505155,87.895,87.87,4.14416457]
[1773469169354,0.48505155,87.893,87.87,4.14416457]
[1773469170151,0.48505155,87.893,87.864,11.38119106]
[1773469170540,0.48505155,87.893,87.86,15.52589169]
[1773469171359,0.48505155,87.891,87.861,0.46657965]
[1773469172646,0.48505155,87.889,87.87,3.67758492]
[1773469177364,0.48505155,87.889,87.87,4.14416457]
[1773469178268,0.48505155,87.887,87.87,3.67758492]
[1773469181560,0.48505155,87.887,87.871,0.46657965]
[1773469182667,0.48505155,87.887,87.871,11.84689852]
[1773469183658,0.48505155,87.887,87.871,11.38031887]
[1773469185270,0.48505155,87.887,87.87,3.67758492]
[1773469185650,0.48505155,87.885,87.86,3.67758492]
[1773469187156,0.46822949,87.883,87.86,3.67758492]
[1773469187358,0.46822949,87.883,87.861,0.4800784]
[1773469187873,0.46822949,87.883,87.838,2.95506722]
[1773469187874,0.46822949,87.869,87.817,0.4800784]
[1773469188059,0.46822949,87.849,87.817,0.4800784]
[1773469188572,0.46822949,87.839,87.817,0.4800784]
[1773469188775,3.67758492,87.84,87.811,11.38802467]
[1773469188776,0.46822949,87.837,87.812,0.4800784]
[1773469189266,0.46822949,87.837,87.801,0.4800784]
[1773469190571,11.38511282,87.834,87.802,0.4800784]
[1773469190776,0.46822949,87.833,87.802,0.4800784]
[1773469192173,11.3833498,87.848,87.811,0.47383547]
[1773469192371,0.46343356,87.855,87.831,0.47383547]
[1773469192976,11.38165708,87.861,87.841,0.47383547]
[1773469193182,0.46343356,87.86,87.841,0.47383547]
[1773469195683,0.46343356,87.858,87.831,0.47383547]
[1773469195981,0.46343356,87.858,87.821,0.47383547]
[1773469196276,11.38187322,87.859,87.822,0.47383547]
[1773469196277,0.46343356,87.849,87.822,0.47383547]
[1773469197766,11.38329842,87.848,87.822,0.47383547]
[1773469197982,0.46343356,87.847,87.822,0.47383547]
[1773469198981,11.38187322,87.859,87.831,0.47383547]
[1773469200075,11.84530678,87.859,87.831,0.47383547]
[1773469200880,0.46343356,87.858,87.831,0.47383547]
[1773469201382,11.38213232,87.857,87.822,0.47383547]
[1773469201686,0.46343356,87.856,87.822,0.47383547]
[1773469202389,11.38239144,87.855,87.822,11.38666848]
[1773469202576,0.46343356,87.849,87.823,0.47383547]
[1773469205093,0.46343356,87.849,87.825,0.47383547]
[1773469205278,0.46343356,87.859,87.825,0.47383547]
[1773469206180,0.46343356,87.855,87.827,0.47383547]
[1773469209691,103.4,87.859,87.831,0.47383547]
[1773469209879,103.86343356,87.859,87.831,0.47383547]
[1773469210202,0.46343356,87.858,87.831,0.47383547]
[1773469210491,11.84543633,87.858,87.831,0.47383547]
[1773469211298,0.46343356,87.857,87.831,0.47383547]
[1773469211993,11.38226188,87.856,87.833,0.47383547]
[1773469214400,0.46343356,87.849,87.809,0.47383547]
[1773469214611,11.38226188,87.856,87.791,0.47383547]
[1773469214612,0.46343356,87.829,87.791,0.47383547]
[1773469214780,3.67697886,87.81,87.79,0.1]
[1773469215096,7.26,87.809,87.79,0.1]
[1773469216683,0.46343356,87.808,87.79,0.1]
[1773469217881,0.46343356,87.806,87.79,0.1]
[1773469219300,0.46343356,87.804,87.79,0.1]
[1773469221982,0.51579477,87.799,87.771,11.39324845]
[1773469222293,0.51579477,87.799,87.772,0.46959533]
[1773469223303,11.38913248,87.803,87.772,0.46959533]
[1773469224398,0.51579477,87.805,87.774,0.46959533]
[1773469224600,7.26,87.809,87.781,0.46959533]
[1773469225380,0.51579477,87.808,87.773,39.87558815]
[1773469225585,3.67697886,87.78,87.752,0.46959533]
[1773469225801,7.26,87.779,87.752,0.46959533]
[1773469226211,7.26,87.787,87.761,0.52010325]
[1773469226503,11.39133802,87.786,87.761,0.52010325]
[1773469226898,39.86968308,87.786,87.761,0.52010325]
[1773469227098,0.51579477,87.779,87.74,3.67697886]
[1773469227804,0.51579477,87.785,87.75,3.67697886]
[1773469228610,0.51579477,87.777,87.741,11.39718033]
[1773469228797,0.51579477,87.783,87.75,3.67697886]
[1773469229308,0.51579477,87.783,87.751,0.46959533]
[1773469230506,11.3918571,87.782,87.751,0.46959533]
[1773469230911,11.90765187,87.782,87.753,0.46959533]
[1773469231396,11.3918571,87.782,87.753,0.46959533]
[1773469231592,3.67697886,87.78,87.741,0.47910703]
[1773469231833,18.65125063,87.787,87.761,0.47910703]
[1773469233198,18.65125063,87.787,87.762,0.47910703]
[1773469235812,7.26,87.787,87.762,0.47910703]
[1773469237214,7.26,87.787,87.738,2.95506722]
[1773469237393,7.26,87.787,87.76,3.67697886]
[1773469238909,0.51579477,87.786,87.75,3.67697886]
[1773469239211,11.90713279,87.786,87.752,11.39575166]
[1773469239514,0.51579477,87.779,87.753,0.46959533]
[1773469239698,0.51579477,87.777,87.753,0.46959533]
[1773469240213,0.51579477,87.777,87.747,11.8659162]
[1773469241105,0.51579477,87.775,87.748,0.46959533]
[1773469242919,11.39254558,87.777,87.75,0.46959533]
[1773469243123,11.39254558,87.777,87.75,3.67697886]
[1773469243329,11.39254558,87.777,87.751,0.46959533]
[1773469243502,103.4,87.778,87.751,0.46959533]
[1773469244006,0.51579477,87.776,87.751,0.46959533]
[1773469244515,0.51579477,87.774,87.751,0.46959533]
[1773469245102,7.26,87.775,87.753,0.46959533]
[1773469245816,11.392506,87.777,87.753,0.46959533]
[1773469246024,7.26,87.774,87.753,0.46959533]
[1773469246524,103.4,87.778,87.753,0.46959533]
[1773469246703,7.26,87.777,87.753,0.46959533]
[1773469247224,7.26,87.777,87.755,0.59697125]
[1773469247524,7.26,87.776,87.755,0.59697125]
[1773469248116,103.4,87.778,87.755,0.59697125]
[1773469248316,7.26,87.775,87.755,0.59697125]
[1773469249023,7.26,87.775,87.756,11.39523223]
[1773469249331,7.26,87.775,87.757,0.59697125]
[1773469249802,1.4054276,87.775,87.756,11.39523223]
[1773469250124,7.26,87.776,87.761,0.59697125]
[1773469251125,7.26,87.776,87.761,11.99152719]
[1773469251329,7.26,87.776,87.762,0.61857787]
[1773469254128,7.26,87.775,87.761,0.61857787]
[1773469254317,96.95267269,87.778,87.761,0.61857787]
[1773469254512,7.26,87.778,87.761,0.61857787]
[1773469255911,7.26,87.778,87.771,0.61857787]
[1773469256222,7.26,87.787,87.771,0.61857787]
[1773469256421,7.26,87.79,87.771,0.61857787]
[1773469257337,7.26,87.796,87.781,0.61857787]
[1773469257536,7.26,87.803,87.781,0.61857787]
[1773469258230,7.26,87.804,87.783,0.61857787]
[1773469260334,7.26,87.804,87.785,0.61857787]
[1773469261870,0.6177419,87.803,87.78,12.0106631]
[1773469262129,0.6177419,87.789,87.75,3.67697886]
[1773469262326,0.6177419,87.787,87.756,11.39523223]
[1773469262511,0.6177419,87.779,87.74,3.67697886]
[1773469262709,0.6177419,87.777,87.74,3.67697886]
[1773469263545,0.6177419,87.769,87.74,3.67697886]
[1773469263845,0.6177419,87.769,87.741,11.39718033]
[1773469264025,0.6177419,87.749,87.733,11.398093]
[1773469265323,0.6177419,87.749,87.73,3.78368936]
[1773469267036,0.6177419,87.749,87.731,12.01705731]
[1773469270430,0.6177419,87.758,87.731,11.39847944]
[1773469271334,0.6177419,87.758,87.731,12.01705731]
[1773469272732,0.6177419,87.758,87.732,0.61857787]
[1773469274925,0.6177419,87.758,87.741,0.61857787]
[1773469275126,0.6177419,87.768,87.741,0.61857787]
[1773469276924,0.6177419,87.768,87.743,0.61857787]
[1773469279026,0.6177419,87.768,87.745,0.61857787]
[1773469279428,0.6177419,87.768,87.745,0.11857787]
[1773469281348,0.6177419,87.768,87.75,3.68368936]
[1773469282936,0.6177419,87.768,87.751,11.39588152]
[1773469285528,90.3064938,87.773,87.752,0.38405823]
[1773469285729,3.68368936,87.79,87.76,3.68368936]
[1773469285730,7.87382111,87.778,87.76,3.68368936]
[1773469285939,0.61382111,87.777,87.76,3.68368936]
[1773469286741,0.61382111,87.777,87.758,0.38405823]
[1773469286952,0.61382111,87.777,87.752,0.38529359]
[1773469289052,0.61382111,87.777,87.76,3.68368936]
[1773469289454,0.61382111,87.777,87.761,0.38772191]
[1773469289960,0.61382111,87.777,87.762,11.39445318]
[1773469290551,7.26,87.778,87.763,0.39009477]
[1773469291756,7.26,87.778,87.764,11.39419351]
[1773469294473,7.87382111,87.778,87.764,11.39419351]
[1773469297666,7.26,87.778,87.765,0.39798104]
[1773469298764,0.61382111,87.803,87.771,0.39905649]
[1773469298967,0.61382111,87.803,87.781,0.39905649]
[1773469299385,0.61382111,87.803,87.79,3.68368936]
[1773469300171,0.61382111,87.803,87.786,0.39905649]
[1773469300971,0.61382111,87.803,87.781,11.79315733]
[1773469301164,0.61382111,87.803,87.782,0.40117046]
[1773469303566,11.38751802,87.816,87.784,0.40425124]
[1773469303752,0.61382111,87.815,87.784,0.40425124]
[1773469304369,0.61382111,87.815,87.788,0.40425124]
[1773469304564,12.00139726,87.815,87.788,0.40425124]
[1773469304774,0.61382111,87.814,87.783,11.79698199]
[1773469305069,0.61382111,87.814,87.784,0.40525467]
[1773469306369,0.61382111,87.814,87.786,0.40624657]
[1773469306664,0.61382111,87.814,87.791,0.40722708]
[1773469307169,0.63582493,87.812,87.785,11.39146779]
[1773469307548,0.63582493,87.812,87.786,0.40915444]
[1773469309069,0.63582493,87.812,87.79,3.68368936]
[1773469310467,0.63582493,87.816,87.792,0.41103778]
[1773469311361,0.64682761,87.832,87.801,0.41287811]
[1773469312673,0.64682761,87.832,87.802,11.3892622]
[1773469313372,0.64682761,87.832,87.802,11.8039386]
[1773469314876,0.64682761,87.832,87.805,0.41643361]
[1773469315674,0.64682761,87.832,87.81,3.68368936]
[1773469316174,0.64682761,87.832,87.809,0.41729711]
[1773469317680,0.64682761,87.832,87.81,15.07191393]
[1773469317976,0.64682761,87.832,87.81,11.38822457]
[1773469320566,0.64682761,87.832,87.811,0.4214681]
[1773469320767,0.64682761,87.832,87.81,11.38822457]
[1773469321357,0.64682761,87.832,87.81,15.07191393]
[1773469322983,0.64682761,87.829,87.805,11.38878971]
[1773469325482,0.64682761,87.829,87.8,3.68368936]
[1773469325483,0.64682761,87.829,87.801,11.38939192]
[1773469331185,0.64682761,87.829,87.804,0.42912092]
[1773469333681,0.64682761,87.829,87.803,11.38913248]
[1773469334569,0.64682761,87.829,87.806,0.43194293]
[1773469335571,0.64682761,87.835,87.806,0.43194293]
[1773469335781,0.64682761,87.835,87.82,3.6786043]
[1773469336378,0.64682761,87.838,87.821,0.43330578]
[1773469336680,6.90981238,87.839,87.822,11.38666848]
[1773469336992,6.90981238,87.839,87.823,0.43330578]
[1773469338380,6.90981238,87.839,87.82,3.6786043]
[1773469338381,6.90981238,87.839,87.825,0.43397549]
[1773469338685,7.55663999,87.839,87.824,11.38640918]
[1773469339474,6.90981238,87.839,87.826,11.38614988]
[1773469339673,6.90981238,87.839,87.827,0.43529192]
[1773469341778,0.63466282,87.838,87.821,11.38679814]
[1773469341996,0.63466282,87.837,87.818,11.38718713]
[1773469342384,0.63466282,87.837,87.82,3.6786043]
[1773469343396,0.63466282,87.837,87.821,11.38679814]
[1773469343600,0.63466282,87.836,87.794,0.43845293]
[1773469343903,0.63466282,87.836,87.801,0.43845293]
[1773469348090,0.63466282,87.834,87.803,0.44085353]
[1773469349009,0.63466282,87.834,87.811,0.44143654]
[1773469349598,0.63466282,87.834,87.81,3.6786043]
[1773469350708,0.63466282,87.834,87.81,15.06677226]
[1773469350895,6.90981238,87.839,87.802,28.4731555]
[1773469350896,0.63466282,87.832,87.805,11.38876017]
[1773469354811,0.63466282,87.83,87.805,11.38876017]
[1773469356409,0.63466282,87.83,87.805,0.44533438]
[1773469359016,0.63466282,87.83,87.807,0.44691078]
[1773469362015,0.63466282,87.83,87.809,0.44843347]
[1773469362912,0.63466282,87.83,87.808,11.38848396]
[1773469363310,0.63466282,87.83,87.809,0.44892942]
[1773469363512,0.63466282,87.83,87.808,11.38848396]
[1773469363709,0.63466282,87.83,87.808,11.83790364]
[1773469363915,0.63466282,87.83,87.809,0.44941968]
[1773469364419,0.63466282,87.83,87.81,15.06682887]
[1773469364604,0.63466282,87.83,87.811,0.4499043]
[1773469366125,0.63466282,87.83,87.812,11.83834855]
[1773469369027,0.63466282,87.83,87.807,0.45224519]
[1773469369420,0.63466282,87.83,87.802,0.45224519]
[1773469370705,3.6786043,87.86,87.811,0.65815136]
[1773469370907,3.6786043,87.86,87.812,11.38796519]
[1773469371108,3.6786043,87.85,87.813,0.65815136]
[1773469372726,0.61902068,87.848,87.813,0.65815136]
[1773469373725,0.61902068,87.846,87.812,11.38796519]
[1773469374922,0.61902068,87.845,87.812,11.38796519]
[1773469375123,0.61902068,87.845,87.812,12.03686455]
[1773469375317,0.61902068,87.843,87.812,12.03686455]
[1773469375622,0.61902068,87.843,87.813,0.64889936]
[1773469376524,0.61902068,87.841,87.814,11.38770583]
[1773469379627,0.61902068,87.839,87.814,12.03660519]
[1773469380610,0.61902068,87.839,87.815,0.64889936]
[1773469380807,0.61902068,87.847,87.821,0.64889936]
[1773469382708,0.61902068,87.847,87.82,3.6786043]
[1773469382709,12.00257826,87.846,87.83,3.6786043]
[1773469382937,0.61902068,87.845,87.828,0.64889936]
[1773469383130,0.61902068,87.845,87.821,0.64889936]
[1773469383331,0.61902068,87.845,87.811,11.38809488]
[1773469383537,0.61902068,87.839,87.808,0.64889936]
[1773469385034,11.38459436,87.838,87.808,0.64889936]
[1773469385238,0.61902068,87.837,87.808,0.64889936]
[1773469386227,0.61902068,87.835,87.808,0.64889936]
[1773469387234,0.61902068,87.833,87.808,0.64889936]
[1773469390231,0.61902068,87.831,87.808,0.64889936]
[1773469393332,11.38563133,87.83,87.808,0.64889936]
[1773469393635,0.61902068,87.829,87.808,0.64889936]
[1773469397438,0.61902068,87.843,87.821,0.64889936]
[1773469399036,0.61902068,87.843,87.811,0.64889936]
[1773469400039,0.61902068,87.841,87.813,0.64889936]
[1773469405151,11.38433515,87.84,87.814,11.38770583]
[1773469405445,0.67433692,87.839,87.815,0.68500053]
[1773469406450,0.67433692,87.839,87.821,0.68500053]
[1773469406629,0.67433692,87.869,87.831,0.68500053]
[1773469406836,0.67433692,87.867,87.841,0.68500053]
[1773469407342,0.67433692,87.865,87.841,0.68500053]
[1773469407734,0.67433692,87.865,87.843,0.68500053]
[1773469410452,0.67433692,87.863,87.843,0.68500053]
[1773469410832,0.67433692,87.863,87.84,4.36293518]
[1773469412454,0.67433692,87.861,87.84,0.68500053]
[1773469412831,0.67433692,87.861,87.833,11.38522584]
[1773469412832,0.67433692,87.849,87.81,3.67793465]
[1773469413228,0.67433692,87.839,87.8,3.67793465]
[1773469413429,0.67433692,87.837,87.805,11.38887307]
[1773469413631,0.67433692,87.837,87.81,3.67793465]
[1773469413858,0.67433692,87.852,87.83,3.67793465]
[1773469414844,0.67433692,87.85,87.83,4.07211938]
[1773469416954,0.67433692,87.85,87.83,4.07751854]
[1773469417147,0.67433692,87.85,87.831,0.39958389]
[1773469420648,0.67433692,87.85,87.83,3.67793465]
[1773469420649,0.67433692,87.85,87.832,11.38537207]
[1773469420847,7.26,87.855,87.833,0.4100278]
[1773469421057,7.26,87.855,87.841,0.4100278]
[1773469426754,6.83282996,87.855,87.84,15.06218702]
[1773469429558,0.76264802,87.849,87.806,11.38874336]
[1773469429858,0.76264802,87.839,87.806,11.38874336]
[1773469432263,6.83282996,87.855,87.81,3.67793465]
[1773469432465,0.76671141,87.857,87.83,3.67793465]
[1773469432764,0.76671141,87.855,87.82,3.67793465]
[1773469433147,0.76671141,87.855,87.809,2.95506722]
[1773469433152,0.76671141,87.855,87.806,96.8043186]
[1773469433153,0.76671141,87.855,87.806,39.86060177]
[1773469433343,0.76671141,87.849,87.81,3.67793465]
[1773469433545,0.76671141,87.829,87.805,2.71823346]
[1773469433853,0.76671141,87.829,87.8,3.67793465]
[1773469435464,0.76671141,87.829,87.801,11.38939192]
[1773469437166,0.76671141,87.828,87.801,11.38939192]
[1773469439843,0.76671141,87.826,87.801,11.38939192]
[1773469440249,3.67793465,87.81,87.779,2.14020611]
[1773469440553,0.76671141,87.809,87.78,11.39211665]
[1773469440956,0.76671141,87.799,87.76,3.67793465]
[1773469441365,39.85107085,87.827,87.734,11.39808968]
[1773469441366,0.76671141,87.769,87.734,11.39808968]
[1773469441568,0.76671141,87.759,87.734,11.39808968]
[1773469441777,0.76671141,87.759,87.699,4.75107335]
[1773469442008,278.95749595,87.827,87.689,0.71919195]
[1773469442009,0.21539395,87.739,87.689,0.71919195]
[1773469442146,34.22,87.755,87.691,0.71919195]
[1773469442147,0.21539395,87.729,87.691,0.71919195]
[1773469443147,0.21539395,87.729,87.69,15.08174352]
[1773469443148,0.21159072,87.736,87.701,0.71919195]
[1773469443353,0.21159072,87.734,87.701,0.71919195]
[1773469443968,11.60605076,87.733,87.703,0.71919195]
[1773469444652,7.26,87.74,87.711,0.71919195]
[1773469444863,0.2041148,87.738,87.711,0.71919195]
[1773469445060,0.2041148,87.738,87.705,0.71919195]
[1773469446181,0.20044112,87.729,87.705,0.71919195]
[1773469447260,0.20044112,87.729,87.706,11.4017285]
[1773469447575,0.18917747,87.739,87.707,0.71919195]
[1773469448657,0.18163296,87.738,87.708,12.12066045]
[1773469448969,3.86824663,87.73,87.697,0.71919195]
[1773469449179,0.18163296,87.729,87.697,0.71919195]
[1773469449496,7.4341751,87.734,87.691,0.71919195]
[1773469449773,7.26,87.734,87.701,0.71919195]
[1773469450847,7.26,87.734,87.703,0.71919195]
[1773469451066,3.68661367,87.75,87.711,0.71919195]
[1773469451373,3.85341658,87.75,87.711,0.71919195]
[1773469451575,0.1595154,87.749,87.711,0.71919195]
[1773469452572,11.39589837,87.751,87.703,0.71919195]
[1773469452573,0.15231158,87.729,87.703,0.71919195]
[1773469453853,0.15231158,87.729,87.704,11.4019885]
[1773469454049,3.68661367,87.72,87.698,11.40276859]
[1773469454268,3.83180418,87.72,87.698,11.40276859]
[1773469454474,0.14519051,87.719,87.698,11.40276859]
[1773469454770,0.14519051,87.719,87.68,3.78661367]
[1773469454771,0.13815124,87.709,87.684,0.71919195]
[1773469455474,0.13815124,87.709,87.685,11.40445914]
[1773469456052,3.68661367,87.71,87.686,0.71919195]
[1773469456374,11.39890195,87.728,87.691,0.71919195]
[1773469456566,0.12431431,87.727,87.691,0.71919195]
[1773469457276,3.68661367,87.74,87.701,0.71919195]
[1773469457459,5.37898556,87.743,87.711,0.71919195]
[1773469458480,5.37898556,87.743,87.71,3.68661367]
[1773469458481,0.11751482,87.729,87.693,0.71919195]
[1773469459667,3.68661367,87.72,87.695,0.71919195]
[1773469460081,3.79076291,87.72,87.695,0.71919195]
[1773469460377,0.10414924,87.72,87.695,0.71919195]